[Event "*** Titled Tuesday 3|2 Blitz"]
[Site "Chess.com"]
[Date "2016.10.04"]
[Round "6"]
[White "Carolina-moon"]
[Black "cstefan"]
[Result "1-0"]
[WhiteElo "2167"]
[BlackElo "2012"]
[TimeControl "180+2"]
[EndTime "12:10:56 PDT"]
[Termination "Carolina-moon won by resignation"]

1. e4 {[%clk 0:03:02]} 1... c6 {[%clk 0:03:00.1]} 2. c4 {[%clk 0:03:02.2]} 2...
d5 {[%clk 0:03:02]} 3. exd5 {[%clk 0:03:04.1]} 3... cxd5 {[%clk 0:03:03.2]} 4.
cxd5 {[%clk 0:03:06]} 4... Nf6 {[%clk 0:03:04.7]} 5. Qa4+ {[%clk 0:03:07]} 5...
Nbd7 {[%clk 0:03:05]} 6. Nc3 {[%clk 0:03:07.9]} 6... g6 {[%clk 0:03:06]} 7. Nf3
{[%clk 0:03:09.3]} 7... Bg7 {[%clk 0:03:07.1]} 8. Qb3 {[%clk 0:03:08.7]} 8...
O-O {[%clk 0:03:03.1]} 9. Bc4 {[%clk 0:03:09.2]} 9... a5 {[%clk 0:02:57.8]} 10.
a4 {[%clk 0:02:58.4]} 10... Nc5 {[%clk 0:02:58.2]} 11. Qa3 {[%clk 0:02:59.1]}
11... Na6 {[%clk 0:02:54.1]} 12. O-O {[%clk 0:02:11.8]} 12... Nb4 {[%clk
0:02:54]} 13. Qb3 {[%clk 0:02:02.1]} 13... Bf5 {[%clk 0:02:54.2]} 14. Nd4 {[%clk
0:01:53.7]} 14... Bd3 {[%clk 0:02:45.8]} 15. Bxd3 {[%clk 0:01:44.5]} 15... Nxd3
{[%clk 0:02:47.7]} 16. Ncb5 {[%clk 0:01:38.1]} 16... Nb4 {[%clk 0:02:45.2]} 17.
d6 {[%clk 0:01:30.8]} 17... exd6 {[%clk 0:02:30.2]} 18. d3 {[%clk 0:01:31.8]}
18... Rc8 {[%clk 0:02:21.1]} 19. Bd2 {[%clk 0:01:31.2]} 19... Nfd5 {[%clk
0:02:22.1]} 20. Rac1 {[%clk 0:01:24.8]} 20... Qb6 {[%clk 0:02:22.4]} 21. Be3
{[%clk 0:01:06.9]} 21... Nxe3 {[%clk 0:02:04.6]} 22. fxe3 {[%clk 0:01:07.7]}
22... Bh6 {[%clk 0:01:57.5]} 23. Rxc8 {[%clk 0:01:05.5]} 23... Bxe3+ {[%clk
0:01:57.5]} 24. Kh1 {[%clk 0:01:06.3]} 24... Rxc8 {[%clk 0:01:56.1]} 25. Qxf7+
{[%clk 0:00:58.8]} 25... Kh8 {[%clk 0:01:57.2]} 26. Qf6+ {[%clk 0:00:57.3]}
26... Kg8 {[%clk 0:01:58.2]} 27. Qe6+ {[%clk 0:00:58.2]} 27... Kg7 {[%clk
0:01:59.1]} 28. Qxe3 {[%clk 0:00:55.9]} 1-0

[Event "*** Titled Tuesday 3|2 Blitz"]
[Site "Chess.com"]
[Date "2016.10.04"]
[Round "6"]
[White "biostatistician"]
[Black "oskariot"]
[Result "1/2-1/2"]
[WhiteElo "2438"]
[BlackElo "2381"]
[TimeControl "180+2"]
[EndTime "12:11:00 PDT"]
[Termination "Game drawn by agreement"]

1. d4 {[%clk 0:03:02]} 1... Nf6 {[%clk 0:03:00.7]} 2. Nf3 {[%clk 0:03:02.8]}
2... g6 {[%clk 0:03:02]} 3. c4 {[%clk 0:03:04.4]} 3... Bg7 {[%clk 0:03:03.1]} 4.
Nc3 {[%clk 0:03:06.3]} 4... O-O {[%clk 0:03:04.1]} 5. e4 {[%clk 0:03:07.4]} 5...
d6 {[%clk 0:03:05.4]} 6. Be2 {[%clk 0:03:09.3]} 6... c5 {[%clk 0:03:06.6]} 7. d5
{[%clk 0:03:09.6]} 7... e6 {[%clk 0:03:06.5]} 8. O-O {[%clk 0:03:10.4]} 8...
exd5 {[%clk 0:03:07.8]} 9. exd5 {[%clk 0:03:12.3]} 9... Re8 {[%clk 0:03:07.2]}
10. h3 {[%clk 0:03:12.7]} 10... Ne4 {[%clk 0:03:05.7]} 11. Nxe4 {[%clk
0:03:12.7]} 11... Rxe4 {[%clk 0:03:06.8]} 12. Bd3 {[%clk 0:03:13.9]} 12... Re8
{[%clk 0:03:06.6]} 13. Bg5 {[%clk 0:03:13.3]} 13... Bf6 {[%clk 0:03:05.3]} 14.
Re1 {[%clk 0:03:05.8]} 14... Rxe1+ {[%clk 0:02:29.4]} 15. Qxe1 {[%clk
0:03:07.7]} 15... Bxg5 {[%clk 0:02:24.7]} 16. Nxg5 {[%clk 0:03:09.6]} 16... Qxg5
{[%clk 0:02:25.7]} 17. Qe8+ {[%clk 0:03:09.9]} 17... Kg7 {[%clk 0:02:26.7]} 18.
Qxc8 {[%clk 0:03:11]} 18... Qe7 {[%clk 0:02:27.3]} 19. Kf1 {[%clk 0:02:33.7]}
19... Qd7 {[%clk 0:02:27.7]} 20. Qxd7 {[%clk 0:02:34.3]} 20... Nxd7 {[%clk
0:02:29.1]} 21. Re1 {[%clk 0:02:36.2]} 21... Kf8 {[%clk 0:02:30.3]} 22. f4
{[%clk 0:02:35]} 22... Re8 {[%clk 0:01:53.3]} 23. Rxe8+ {[%clk 0:02:35.3]} 23...
Kxe8 {[%clk 0:01:54.7]} 24. Kf2 {[%clk 0:02:37.2]} 24... Ke7 {[%clk 0:01:50.2]}
25. Ke3 {[%clk 0:02:32.2]} 25... h6 {[%clk 0:01:28.9]} 26. h4 {[%clk 0:02:30.3]}
26... Nb6 {[%clk 0:01:05.2]} 27. b3 {[%clk 0:02:28.6]} 27... a5 {[%clk
0:01:02.5]} 28. a4 {[%clk 0:02:17.5]} 28... Na8 {[%clk 0:01:01.7]} 29. g4 {[%clk
0:02:18.4]} 29... Nc7 {[%clk 0:01:01.5]} 30. g5 {[%clk 0:02:19.5]} 30... hxg5
{[%clk 0:01:00.5]} 31. hxg5 {[%clk 0:02:13.5]} 1/2-1/2

[Event "*** Titled Tuesday 3|2 Blitz"]
[Site "Chess.com"]
[Date "2016.10.04"]
[Round "6"]
[White "Ar4uha"]
[Black "ulises2013"]
[Result "1-0"]
[WhiteElo "2470"]
[BlackElo "2318"]
[TimeControl "180+2"]
[EndTime "12:11:07 PDT"]
[Termination "Ar4uha won by resignation"]

1. e4 {[%clk 0:03:02]} 1... g6 {[%clk 0:02:48.1]} 2. d4 {[%clk 0:03:02]} 2...
Bg7 {[%clk 0:02:48.4]} 3. Nc3 {[%clk 0:03:03.3]} 3... c5 {[%clk 0:02:48.8]} 4.
dxc5 {[%clk 0:03:03.6]} 4... Bxc3+ {[%clk 0:02:49.3]} 5. bxc3 {[%clk 0:03:04.4]}
5... Qa5 {[%clk 0:02:50.8]} 6. Qd4 {[%clk 0:03:05.4]} 6... Nf6 {[%clk
0:02:51.9]} 7. Bd3 {[%clk 0:02:46]} 7... Nc6 {[%clk 0:02:51]} 8. Qc4 {[%clk
0:02:47.3]} 8... b6 {[%clk 0:02:44.2]} 9. cxb6 {[%clk 0:02:25.1]} 9... axb6
{[%clk 0:02:46.1]} 10. Ne2 {[%clk 0:02:26.2]} 10... Ba6 {[%clk 0:02:41.8]} 11.
Qb3 {[%clk 0:02:27.2]} 11... Ne5 {[%clk 0:02:19.2]} 12. O-O {[%clk 0:02:02.8]}
12... Nxd3 {[%clk 0:02:15.7]} 13. cxd3 {[%clk 0:02:04]} 13... Bxd3 {[%clk
0:02:16.3]} 14. Re1 {[%clk 0:02:05.6]} 14... O-O {[%clk 0:02:03.5]} 15. Ng3
{[%clk 0:01:52.5]} 15... Rfc8 {[%clk 0:01:35.8]} 16. Bd2 {[%clk 0:01:52]} 16...
Bc4 {[%clk 0:01:33.4]} 17. Qb2 {[%clk 0:01:52.3]} 17... d6 {[%clk 0:01:33.6]}
18. a4 {[%clk 0:01:50.8]} 18... Nd7 {[%clk 0:01:27.9]} 19. Qb4 {[%clk
0:01:39.3]} 19... Nc5 {[%clk 0:01:24.2]} 20. Qxc4 {[%clk 0:01:34.7]} 20... Nxa4
{[%clk 0:01:21.2]} 21. Qb4 {[%clk 0:01:20.2]} 21... Qxb4 {[%clk 0:01:14.7]} 22.
cxb4 {[%clk 0:01:22.1]} 22... b5 {[%clk 0:01:12.4]} 23. Rec1 {[%clk 0:01:22.9]}
23... Rc4 {[%clk 0:01:05.5]} 24. Rxc4 {[%clk 0:01:19.9]} 24... bxc4 {[%clk
0:01:07.4]} 25. Ne2 {[%clk 0:01:21.3]} 1-0

[Event "*** Titled Tuesday 3|2 Blitz"]
[Site "Chess.com"]
[Date "2016.10.04"]
[Round "6"]
[White "Holden-Caulfield"]
[Black "sandropozo"]
[Result "0-1"]
[WhiteElo "2467"]
[BlackElo "2362"]
[TimeControl "180+2"]
[EndTime "12:11:14 PDT"]
[Termination "sandropozo won by resignation"]

1. d4 {[%clk 0:02:55.4]} 1... d5 {[%clk 0:02:59.2]} 2. Nf3 {[%clk 0:02:56.4]}
2... Nf6 {[%clk 0:02:59.2]} 3. Bf4 {[%clk 0:02:57.2]} 3... c5 {[%clk 0:02:59.9]}
4. e3 {[%clk 0:02:57.4]} 4... Nc6 {[%clk 0:03:00.8]} 5. dxc5 {[%clk 0:02:57.4]}
5... g6 {[%clk 0:02:51.2]} 6. Nbd2 {[%clk 0:02:57.1]} 6... Bg7 {[%clk
0:02:52.2]} 7. Nb3 {[%clk 0:02:57.7]} 7... O-O {[%clk 0:02:52.6]} 8. c3 {[%clk
0:02:59.1]} 8... Ne4 {[%clk 0:02:53.4]} 9. Be2 {[%clk 0:02:59.4]} 9... e5 {[%clk
0:02:54.4]} 10. Bg3 {[%clk 0:02:59.7]} 10... Nxg3 {[%clk 0:02:48]} 11. hxg3
{[%clk 0:02:59.8]} 11... Be6 {[%clk 0:02:49.5]} 12. O-O {[%clk 0:02:59.4]} 12...
a5 {[%clk 0:02:45.7]} 13. a4 {[%clk 0:02:59.5]} 13... Qe7 {[%clk 0:02:45]} 14.
Qc2 {[%clk 0:02:56.7]} 14... f5 {[%clk 0:02:34.5]} 15. Rfd1 {[%clk 0:02:54.1]}
15... Rad8 {[%clk 0:02:26.6]} 16. Bb5 {[%clk 0:02:54.8]} 16... g5 {[%clk
0:02:06.9]} 17. Qe2 {[%clk 0:02:49.6]} 17... f4 {[%clk 0:01:32.5]} 18. exf4
{[%clk 0:02:46.6]} 18... gxf4 {[%clk 0:01:32.4]} 19. Bxc6 {[%clk 0:02:43.1]}
19... bxc6 {[%clk 0:01:33.5]} 20. Nxe5 {[%clk 0:02:42.1]} 20... fxg3 {[%clk
0:01:26.4]} 21. fxg3 {[%clk 0:02:41.3]} 21... Bf5 {[%clk 0:01:14.4]} 22. Re1
{[%clk 0:02:40.4]} 22... Rde8 {[%clk 0:01:15.5]} 23. g4 {[%clk 0:02:20.6]} 23...
Bc8 {[%clk 0:00:59.1]} 24. Nd4 {[%clk 0:01:59.3]} 24... Bxe5 {[%clk 0:00:57.1]}
25. Qe3 {[%clk 0:01:48.2]} 25... Qh4 {[%clk 0:00:47.6]} 26. Qh3 {[%clk
0:01:48.3]} 26... Bxd4+ {[%clk 0:00:46.5]} 27. cxd4 {[%clk 0:01:48.6]} 27...
Rxe1+ {[%clk 0:00:46.8]} 0-1

[Event "*** Titled Tuesday 3|2 Blitz"]
[Site "Chess.com"]
[Date "2016.10.04"]
[Round "6"]
[White "macko06"]
[Black "RamonManon0g"]
[Result "0-1"]
[WhiteElo "2112"]
[BlackElo "2217"]
[TimeControl "180+2"]
[EndTime "12:11:28 PDT"]
[Termination "RamonManon0g won by resignation"]

1. d4 {[%clk 0:03:02]} 1... Nf6 {[%clk 0:02:38.3]} 2. Nf3 {[%clk 0:02:59.9]}
2... g6 {[%clk 0:02:38.9]} 3. c4 {[%clk 0:03:00.9]} 3... d5 {[%clk 0:02:39.4]}
4. Nc3 {[%clk 0:03:00.4]} 4... Bg7 {[%clk 0:02:40.2]} 5. Bg5 {[%clk 0:03:02]}
5... Ne4 {[%clk 0:02:41.2]} 6. cxd5 {[%clk 0:03:01.7]} 6... Nxg5 {[%clk
0:02:41.3]} 7. Nxg5 {[%clk 0:03:03.6]} 7... e6 {[%clk 0:02:42.9]} 8. Qd2 {[%clk
0:03:03.4]} 8... Bh6 {[%clk 0:02:28]} 9. h4 {[%clk 0:02:56.1]} 9... f6 {[%clk
0:02:28.9]} 10. dxe6 {[%clk 0:02:42.1]} 10... fxg5 {[%clk 0:02:28.2]} 11. d5
{[%clk 0:02:38]} 11... O-O {[%clk 0:02:26.1]} 12. Ne4 {[%clk 0:02:34]} 12... c6
{[%clk 0:02:13.2]} 13. hxg5 {[%clk 0:02:30]} 13... Bg7 {[%clk 0:02:13.9]} 14.
dxc6 {[%clk 0:02:18.1]} 14... Nxc6 {[%clk 0:02:02.7]} 15. Qe3 {[%clk 0:02:11]}
15... Bxe6 {[%clk 0:01:20.4]} 16. Nf6+ {[%clk 0:02:02]} 16... Rxf6 {[%clk
0:01:21.5]} 17. gxf6 {[%clk 0:02:02.9]} 17... Qxf6 {[%clk 0:01:23.4]} 18. g3
{[%clk 0:01:53.9]} 18... Bd5 {[%clk 0:01:16.1]} 19. f3 {[%clk 0:01:51.1]} 19...
Qxb2 {[%clk 0:01:16.2]} 20. Rd1 {[%clk 0:01:41.8]} 20... Bc3+ {[%clk 0:01:13.9]}
21. Kf2 {[%clk 0:01:42.2]} 21... Bd4 {[%clk 0:01:15.2]} 22. Rxd4 {[%clk
0:01:40.4]} 22... Qxd4 {[%clk 0:01:17.1]} 23. Qxd4 {[%clk 0:01:34.3]} 23... Nxd4
{[%clk 0:01:19]} 24. Bh3 {[%clk 0:01:35.2]} 24... Bxa2 {[%clk 0:01:18.9]} 25.
Rd1 {[%clk 0:01:33]} 25... Rd8 {[%clk 0:01:16.6]} 26. Ra1 {[%clk 0:01:31]} 26...
Bc4 {[%clk 0:01:12.5]} 27. Rxa7 {[%clk 0:01:30.3]} 27... Ba6 {[%clk 0:01:13.4]}
28. f4 {[%clk 0:01:15.7]} 28... Nc6 {[%clk 0:01:08.3]} 0-1

[Event "*** Titled Tuesday 3|2 Blitz"]
[Site "Chess.com"]
[Date "2016.10.04"]
[Round "6"]
[White "Mornar1951"]
[Black "maciek_92"]
[Result "0-1"]
[WhiteElo "2581"]
[BlackElo "2607"]
[TimeControl "180+2"]
[EndTime "12:12:01 PDT"]
[Termination "maciek_92 won by resignation"]

1. d4 {[%clk 0:03:02]} 1... Nf6 {[%clk 0:03:00.8]} 2. c4 {[%clk 0:03:01.5]} 2...
e6 {[%clk 0:03:01.2]} 3. g3 {[%clk 0:03:01.1]} 3... d5 {[%clk 0:02:58.9]} 4. Bg2
{[%clk 0:03:01.4]} 4... Bb4+ {[%clk 0:02:58.9]} 5. Nd2 {[%clk 0:02:58.3]} 5...
O-O {[%clk 0:02:58.1]} 6. Nf3 {[%clk 0:02:53.7]} 6... b6 {[%clk 0:02:53]} 7.
cxd5 {[%clk 0:02:50.2]} 7... exd5 {[%clk 0:02:52.7]} 8. O-O {[%clk 0:02:50.4]}
8... Bb7 {[%clk 0:02:45.1]} 9. Ne5 {[%clk 0:02:51]} 9... Nbd7 {[%clk 0:02:44.9]}
10. Ndf3 {[%clk 0:02:51.9]} 10... Bd6 {[%clk 0:02:34.3]} 11. Bg5 {[%clk
0:02:51.4]} 11... Be7 {[%clk 0:02:35]} 12. Rc1 {[%clk 0:02:45.8]} 12... c5
{[%clk 0:02:34.6]} 13. Qa4 {[%clk 0:02:34.8]} 13... Nxe5 {[%clk 0:02:30]} 14.
Nxe5 {[%clk 0:02:34.4]} 14... Ne4 {[%clk 0:02:19.9]} 15. Bxe7 {[%clk 0:02:17.1]}
15... Qxe7 {[%clk 0:02:21.8]} 16. Nd3 {[%clk 0:02:03.5]} 16... c4 {[%clk
0:02:13.5]} 17. Qb4 {[%clk 0:01:58.3]} 17... Qxb4 {[%clk 0:02:03.1]} 18. Nxb4
{[%clk 0:02:00.2]} 18... Nf6 {[%clk 0:02:04.5]} 19. a3 {[%clk 0:01:53.4]} 19...
Rfe8 {[%clk 0:02:03]} 20. Rfe1 {[%clk 0:01:53.3]} 20... a5 {[%clk 0:02:01.7]}
21. Na2 {[%clk 0:01:54.1]} 21... b5 {[%clk 0:02:02.8]} 22. Nc3 {[%clk
0:01:50.4]} 22... Bc6 {[%clk 0:02:04]} 23. Nb1 {[%clk 0:01:40]} 23... b4 {[%clk
0:02:01.9]} 24. axb4 {[%clk 0:01:31.9]} 24... axb4 {[%clk 0:02:02.8]} 25. b3
{[%clk 0:01:26]} 25... c3 {[%clk 0:01:56.3]} 26. Nxc3 {[%clk 0:01:27.1]} 26...
bxc3 {[%clk 0:01:57.1]} 27. Rxc3 {[%clk 0:01:29]} 27... Bd7 {[%clk 0:01:49.9]}
28. Rc5 {[%clk 0:01:14.1]} 28... Rxe2 {[%clk 0:01:08.1]} 0-1

[Event "*** Titled Tuesday 3|2 Blitz"]
[Site "Chess.com"]
[Date "2016.10.04"]
[Round "6"]
[White "NoWuss2"]
[Black "platy3"]
[Result "0-1"]
[WhiteElo "2096"]
[BlackElo "2727"]
[TimeControl "180+2"]
[EndTime "12:12:25 PDT"]
[Termination "platy3 won by resignation"]

1. Nf3 {[%clk 0:01:42.8]} 1... Nf6 {[%clk 0:02:56.2]} 2. c4 {[%clk 0:01:43.7]}
2... e6 {[%clk 0:02:56.8]} 3. e3 {[%clk 0:01:44.3]} 3... d5 {[%clk 0:02:57.7]}
4. b3 {[%clk 0:01:45.5]} 4... Be7 {[%clk 0:02:58.8]} 5. Be2 {[%clk 0:01:46.1]}
5... O-O {[%clk 0:02:59.8]} 6. Bb2 {[%clk 0:01:47.5]} 6... b6 {[%clk 0:03:01]}
7. O-O {[%clk 0:01:48.1]} 7... Bb7 {[%clk 0:03:02.4]} 8. Qc2 {[%clk 0:01:47.7]}
8... Nbd7 {[%clk 0:03:03.7]} 9. d4 {[%clk 0:01:48.5]} 9... c5 {[%clk 0:03:05.1]}
10. Nbd2 {[%clk 0:01:49.7]} 10... Rc8 {[%clk 0:03:05.9]} 11. Rad1 {[%clk
0:01:47.4]} 11... cxd4 {[%clk 0:02:28.9]} 12. exd4 {[%clk 0:01:48.1]} 12... Ne4
{[%clk 0:02:30.3]} 13. a3 {[%clk 0:01:37.7]} 13... Bd6 {[%clk 0:02:29.6]} 14.
Bd3 {[%clk 0:01:23.9]} 14... Ndf6 {[%clk 0:02:28.6]} 15. Ne5 {[%clk 0:01:19.9]}
15... Qe7 {[%clk 0:02:28.6]} 16. Bxe4 {[%clk 0:01:12.5]} 16... Nxe4 {[%clk
0:02:23.1]} 17. Nxe4 {[%clk 0:01:07.6]} 17... dxe4 {[%clk 0:02:25]} 18. b4
{[%clk 0:01:06.1]} 18... Qh4 {[%clk 0:02:14.9]} 19. Qe2 {[%clk 0:00:43.7]} 19...
f6 {[%clk 0:01:53.5]} 20. g3 {[%clk 0:00:44.3]} 20... Qh3 {[%clk 0:01:50.8]} 21.
Ng4 {[%clk 0:00:37.8]} 21... f5 {[%clk 0:01:43.7]} 22. Ne5 {[%clk 0:00:35.7]}
22... h5 {[%clk 0:01:36.3]} 23. c5 {[%clk 0:00:31.1]} 23... Bxe5 {[%clk
0:01:27.7]} 24. dxe5 {[%clk 0:00:31.6]} 24... Bd5 {[%clk 0:01:29]} 25. Rc1
{[%clk 0:00:22.8]} 25... f4 {[%clk 0:01:28.5]} 26. f3 {[%clk 0:00:04.2]} 26...
fxg3 {[%clk 0:01:24.2]} 27. fxe4 {[%clk 0:00:04.7]} 27... Bxe4 {[%clk
0:01:24.5]} 28. Rxf8+ {[%clk 0:00:03.2]} 28... Rxf8 {[%clk 0:01:24]} 29. Rc3
{[%clk 0:00:04.5]} 0-1

[Event "*** Titled Tuesday 3|2 Blitz"]
[Site "Chess.com"]
[Date "2016.10.04"]
[Round "6"]
[White "GMNeiksans"]
[Black "GrigorGrigorov"]
[Result "1-0"]
[WhiteElo "2648"]
[BlackElo "2543"]
[TimeControl "180+2"]
[EndTime "12:12:48 PDT"]
[Termination "GMNeiksans won by resignation"]

1. e4 {[%clk 0:03:02]} 1... g6 {[%clk 0:02:57.8]} 2. d4 {[%clk 0:03:02.7]} 2...
Bg7 {[%clk 0:02:58.4]} 3. Nc3 {[%clk 0:03:04]} 3... c6 {[%clk 0:02:59.3]} 4. f4
{[%clk 0:03:04.9]} 4... d5 {[%clk 0:03:00.1]} 5. e5 {[%clk 0:03:06.1]} 5... Nh6
{[%clk 0:03:01]} 6. Nf3 {[%clk 0:03:03.1]} 6... f6 {[%clk 0:03:01.8]} 7. Be3
{[%clk 0:03:02.8]} 7... Bg4 {[%clk 0:03:02.5]} 8. Be2 {[%clk 0:03:01.3]} 8...
O-O {[%clk 0:03:03.1]} 9. O-O {[%clk 0:03:01.8]} 9... e6 {[%clk 0:03:02.7]} 10.
h3 {[%clk 0:02:56.8]} 10... Nf5 {[%clk 0:03:03.3]} 11. Bf2 {[%clk 0:02:57.3]}
11... Bxf3 {[%clk 0:03:04.2]} 12. Bxf3 {[%clk 0:02:58.6]} 12... fxe5 {[%clk
0:03:05.3]} 13. fxe5 {[%clk 0:02:59.3]} 13... c5 {[%clk 0:03:06.2]} 14. dxc5
{[%clk 0:02:52.1]} 14... Nc6 {[%clk 0:03:06]} 15. Nb5 {[%clk 0:02:48.2]} 15...
Nxe5 {[%clk 0:03:03.1]} 16. c3 {[%clk 0:02:26.7]} 16... Nxf3+ {[%clk 0:02:39.1]}
17. Qxf3 {[%clk 0:02:27]} 17... Qd7 {[%clk 0:02:38.6]} 18. Qd3 {[%clk
0:02:25.4]} 18... a6 {[%clk 0:02:29.1]} 19. Nd4 {[%clk 0:02:24]} 19... e5 {[%clk
0:02:21.3]} 20. Nc2 {[%clk 0:02:19.3]} 20... e4 {[%clk 0:02:15.9]} 21. Qd2
{[%clk 0:02:20.3]} 21... Rad8 {[%clk 0:01:51.1]} 22. Rad1 {[%clk 0:02:20.5]}
22... Qe7 {[%clk 0:01:43.6]} 23. Qe2 {[%clk 0:01:58.8]} 23... Be5 {[%clk
0:01:34.8]} 24. Ne3 {[%clk 0:01:24.8]} 24... Bb8 {[%clk 0:01:29.8]} 25. Nxf5
{[%clk 0:01:01.2]} 25... Rxf5 {[%clk 0:01:28.8]} 26. Kh1 {[%clk 0:01:00.4]}
26... Qe5 {[%clk 0:01:18.3]} 27. Bg1 {[%clk 0:01:01.1]} 27... Rdf8 {[%clk
0:01:13.6]} 28. Rxf5 {[%clk 0:00:59.5]} 28... Rxf5 {[%clk 0:01:03.4]} 29. c4
{[%clk 0:00:58.3]} 29... Qe6 {[%clk 0:00:41.5]} 30. cxd5 {[%clk 0:00:59]} 30...
Qe5 {[%clk 0:00:20.7]} 31. d6 {[%clk 0:00:59.1]} 31... Rf8 {[%clk 0:00:21.5]}
32. Qc4+ {[%clk 0:00:58.5]} 1-0

[Event "*** Titled Tuesday 3|2 Blitz"]
[Site "Chess.com"]
[Date "2016.10.04"]
[Round "6"]
[White "hypert"]
[Black "bugsbunny444"]
[Result "0-1"]
[WhiteElo "2285"]
[BlackElo "2338"]
[TimeControl "180+2"]
[EndTime "12:13:00 PDT"]
[Termination "bugsbunny444 won by resignation"]

1. e4 {[%clk 0:03:02]} 1... e6 {[%clk 0:02:59.4]} 2. d4 {[%clk 0:03:02.1]} 2...
d5 {[%clk 0:03:01.1]} 3. Nc3 {[%clk 0:03:03.8]} 3... Nf6 {[%clk 0:03:02.3]} 4.
e5 {[%clk 0:03:04.6]} 4... Nfd7 {[%clk 0:03:04]} 5. f4 {[%clk 0:03:06]} 5... c5
{[%clk 0:03:05.7]} 6. Nf3 {[%clk 0:03:07.5]} 6... Nc6 {[%clk 0:03:07]} 7. Be3
{[%clk 0:03:09]} 7... cxd4 {[%clk 0:03:08.6]} 8. Nxd4 {[%clk 0:03:09.1]} 8...
Bc5 {[%clk 0:03:10.5]} 9. Qd2 {[%clk 0:03:09.7]} 9... O-O {[%clk 0:03:12.1]} 10.
O-O-O {[%clk 0:03:09.1]} 10... a6 {[%clk 0:03:13.7]} 11. Qf2 {[%clk 0:03:07.1]}
11... Qe7 {[%clk 0:03:14.3]} 12. Bd3 {[%clk 0:03:06]} 12... f6 {[%clk
0:03:14.1]} 13. exf6 {[%clk 0:02:59.6]} 13... Nxf6 {[%clk 0:03:16]} 14. Nxc6
{[%clk 0:02:50.1]} 14... Bxe3+ {[%clk 0:03:16]} 15. Qxe3 {[%clk 0:02:52]} 15...
bxc6 {[%clk 0:03:17.3]} 16. Rde1 {[%clk 0:02:35.6]} 16... Rb8 {[%clk 0:03:12.9]}
17. Rhg1 {[%clk 0:02:28.4]} 17... Qb4 {[%clk 0:03:02.1]} 18. Nd1 {[%clk
0:02:27.7]} 18... Ng4 {[%clk 0:02:59.6]} 19. Qh3 {[%clk 0:02:10]} 19... Qxf4+
{[%clk 0:02:48.7]} 20. Kb1 {[%clk 0:02:10.3]} 20... Nf6 {[%clk 0:02:30.3]} 21.
Rgf1 {[%clk 0:02:04.6]} 21... Qh6 {[%clk 0:01:51.1]} 22. Qg3 {[%clk 0:02:04.4]}
22... Bd7 {[%clk 0:01:43.3]} 23. Qd6 {[%clk 0:02:01.5]} 23... Qd2 {[%clk
0:01:19.8]} 24. Rxf6 {[%clk 0:01:40.3]} 24... Qxe1 {[%clk 0:01:16.3]} 25. Rxf8+
{[%clk 0:00:44.3]} 25... Rxf8 {[%clk 0:01:18.2]} 26. Kc1 {[%clk 0:00:45.3]}
26... Be8 {[%clk 0:01:19.1]} 27. g4 {[%clk 0:00:40.6]} 27... Bg6 {[%clk
0:01:14.3]} 28. Bxa6 {[%clk 0:00:34]} 28... h6 {[%clk 0:00:50.5]} 29. h4 {[%clk
0:00:30.6]} 29... Rf2 {[%clk 0:00:45.5]} 30. Bd3 {[%clk 0:00:15.8]} 30... Qd2+
{[%clk 0:00:44.5]} 0-1

[Event "*** Titled Tuesday 3|2 Blitz"]
[Site "Chess.com"]
[Date "2016.10.04"]
[Round "6"]
[White "RobertoJBM"]
[Black "jncool68"]
[Result "0-1"]
[WhiteElo "2481"]
[BlackElo "2465"]
[TimeControl "180+2"]
[EndTime "12:13:11 PDT"]
[Termination "jncool68 won on time"]

1. d4 {[%clk 0:03:01.9]} 1... Nf6 {[%clk 0:03:00.2]} 2. c4 {[%clk 0:02:51.1]}
2... e6 {[%clk 0:03:00.9]} 3. Nf3 {[%clk 0:02:50.9]} 3... Bb4+ {[%clk
0:03:01.5]} 4. Nbd2 {[%clk 0:02:49.2]} 4... O-O {[%clk 0:03:01.1]} 5. a3 {[%clk
0:02:50]} 5... Be7 {[%clk 0:03:02.1]} 6. e4 {[%clk 0:02:50.6]} 6... d6 {[%clk
0:03:03.6]} 7. Bd3 {[%clk 0:02:51]} 7... e5 {[%clk 0:03:04.5]} 8. dxe5 {[%clk
0:02:41.9]} 8... dxe5 {[%clk 0:03:05.5]} 9. Nxe5 {[%clk 0:02:41.8]} 9... Re8
{[%clk 0:03:06.8]} 10. Be2 {[%clk 0:02:38.5]} 10... Bc5 {[%clk 0:03:02.4]} 11.
Nd3 {[%clk 0:02:39.1]} 11... Bd4 {[%clk 0:03:01]} 12. Bf3 {[%clk 0:02:32.9]}
12... Nxe4 {[%clk 0:02:50.9]} 13. Nxe4 {[%clk 0:02:30.6]} 13... f5 {[%clk
0:02:51.8]} 14. Nb4 {[%clk 0:02:18.9]} 14... fxe4 {[%clk 0:02:51]} 15. Be2
{[%clk 0:02:20.1]} 15... Nc6 {[%clk 0:02:34.3]} 16. Nc2 {[%clk 0:02:02.9]} 16...
Qf6 {[%clk 0:02:22.8]} 17. Nxd4 {[%clk 0:02:02.6]} 17... Nxd4 {[%clk 0:02:24.7]}
18. Be3 {[%clk 0:02:01.6]} 18... c5 {[%clk 0:02:25.6]} 19. O-O {[%clk
0:02:01.7]} 19... Be6 {[%clk 0:02:23]} 20. Bg4 {[%clk 0:01:58.5]} 20... Rad8
{[%clk 0:02:23]} 21. Bxe6+ {[%clk 0:01:58.8]} 21... Qxe6 {[%clk 0:02:24]} 22.
Bxd4 {[%clk 0:01:57.6]} 22... cxd4 {[%clk 0:02:24.7]} 23. Qa4 {[%clk 0:01:55.4]}
23... e3 {[%clk 0:02:20.6]} 24. fxe3 {[%clk 0:01:55.7]} 24... dxe3 {[%clk
0:02:22.2]} 25. Rae1 {[%clk 0:01:54.5]} 25... Qb6 {[%clk 0:02:18.4]} 26. Qc2
{[%clk 0:01:46.4]} 26... Rd2 {[%clk 0:01:42.6]} 27. Qf5 {[%clk 0:01:47.1]} 27...
Rf2 {[%clk 0:01:41.9]} 28. Qd5+ {[%clk 0:01:42]} 28... Kh8 {[%clk 0:01:42.2]}
29. b4 {[%clk 0:01:13]} 29... Ref8 {[%clk 0:01:05.9]} 30. c5 {[%clk 0:00:46.9]}
30... Qa6 {[%clk 0:01:06.7]} 31. Qd1 {[%clk 0:00:27.6]} 31... Qc4 {[%clk
0:01:07.4]} 32. Qc1 {[%clk 0:00:19.4]} 32... Qe4 {[%clk 0:01:01.4]} 0-1